[Event "Live Chess"]
[Site "Chess.com"]
[Date "2023.05.21"]
[Round "-"]
[White "raminguy"]
[Black "therealab0ne"]
[Result "1-0"]
[WhiteElo "1955"]
[BlackElo "717"]
[TimeControl "300"]
[EndTime "19:52:21 PDT"]
[Termination "raminguy won by resignation"]

1. d4 {[%clk 0:04:58.6]} 1... d5 {[%clk 0:04:58.3]} 2. Nc3 {[%clk 0:04:57.6]}
2... e6 {[%clk 0:04:56.7]} 3. Bf4 {[%clk 0:04:57.1]} 3... Bd6 {[%clk 0:04:53.8]}
4. e3 {[%clk 0:04:55.9]} 4... Bxf4 {[%clk 0:04:52.3]} 5. exf4 {[%clk 0:04:55.8]}
5... Nf6 {[%clk 0:04:50.2]} 6. Nf3 {[%clk 0:04:55.1]} 6... O-O {[%clk
0:04:49.4]} 7. Ne5 {[%clk 0:04:53.8]} 7... Nc6 {[%clk 0:04:38.7]} 8. Bd3 {[%clk
0:04:48.6]} 8... Nxe5 {[%clk 0:04:37.7]} 9. fxe5 {[%clk 0:04:47.5]} 9... Ne4
{[%clk 0:04:36.7]} 10. Nxe4 {[%clk 0:04:45.9]} 10... dxe4 {[%clk 0:04:35.7]} 11.
Bxe4 {[%clk 0:04:45.8]} 11... b6 {[%clk 0:04:30.5]} 12. Bxa8 {[%clk 0:04:43.2]}
1-0

[Event "Live Chess"]
[Site "Chess.com"]
[Date "2023.05.21"]
[Round "-"]
[White "smoggyrabbit"]
[Black "ClassyChameleon"]
[Result "1-0"]
[WhiteElo "1749"]
[BlackElo "1077"]
[TimeControl "300"]
[EndTime "19:52:41 PDT"]
[Termination "smoggyrabbit won by resignation"]

1. d4 {[%clk 0:04:58.8]} 1... d5 {[%clk 0:04:57.9]} 2. Nf3 {[%clk 0:04:57.6]}
2... Nf6 {[%clk 0:04:56.1]} 3. e3 {[%clk 0:04:56.7]} 3... Nc6 {[%clk 0:04:53.7]}
4. Bd3 {[%clk 0:04:51.5]} 4... Bg4 {[%clk 0:04:48.8]} 5. Nbd2 {[%clk 0:04:49.4]}
5... e6 {[%clk 0:04:45.2]} 6. b3 {[%clk 0:04:46.4]} 6... Bb4 {[%clk 0:04:41.3]}
7. O-O {[%clk 0:04:30.8]} 7... Bxd2 {[%clk 0:04:37]} 8. Bxd2 {[%clk 0:04:28.4]}
8... Ne4 {[%clk 0:04:34.1]} 9. Be2 {[%clk 0:04:16.1]} 9... O-O {[%clk
0:04:19.6]} 10. h3 {[%clk 0:04:11.5]} 10... Bxf3 {[%clk 0:04:18.1]} 11. Bxf3
{[%clk 0:04:10.2]} 11... Nxd2 {[%clk 0:04:14.8]} 12. Qxd2 {[%clk 0:04:09]} 12...
e5 {[%clk 0:04:09]} 13. dxe5 {[%clk 0:04:06.5]} 13... Nxe5 {[%clk 0:04:08]} 14.
Qxd5 {[%clk 0:04:01.3]} 14... Nxf3+ {[%clk 0:04:04.7]} 15. Qxf3 {[%clk
0:03:59.6]} 15... b5 {[%clk 0:03:54.7]} 16. Rad1 {[%clk 0:03:53.2]} 16... Qg5
{[%clk 0:03:44.9]} 17. Rd5 {[%clk 0:03:50.2]} 17... Qg6 {[%clk 0:03:39.6]} 18.
Rfd1 {[%clk 0:03:48.1]} 18... Qxc2 {[%clk 0:03:35.4]} 19. R5d2 {[%clk
0:03:14.8]} 19... Qg6 {[%clk 0:03:13]} 20. Qxa8 {[%clk 0:03:09.3]} 20... f5
{[%clk 0:02:59.4]} 21. Rd8 {[%clk 0:02:55.8]} 21... Qf6 {[%clk 0:02:47.1]} 22.
Rxf8+ {[%clk 0:02:52.9]} 22... Qxf8 {[%clk 0:02:46.2]} 23. Rd8 {[%clk
0:02:51.7]} 1-0

[Event "Live Chess"]
[Site "Chess.com"]
[Date "2023.05.21"]
[Round "-"]
[White "tpm07"]
[Black "romchyk1219"]
[Result "1-0"]
[WhiteElo "1946"]
[BlackElo "646"]
[TimeControl "300"]
[EndTime "19:53:20 PDT"]
[Termination "tpm07 won by resignation"]

1. d4 {[%clk 0:04:57.7]} 1... Nf6 {[%clk 0:04:58.3]} 2. c4 {[%clk 0:04:56.1]}
2... g6 {[%clk 0:04:57.9]} 3. Nc3 {[%clk 0:04:54.8]} 3... Bg7 {[%clk 0:04:57.2]}
4. e4 {[%clk 0:04:54]} 4... d6 {[%clk 0:04:55]} 5. Be2 {[%clk 0:04:51.8]} 5...
O-O {[%clk 0:04:54.2]} 6. Nf3 {[%clk 0:04:51.3]} 6... Nc6 {[%clk 0:04:53.4]} 7.
d5 {[%clk 0:04:48.6]} 7... Ne5 {[%clk 0:04:49.5]} 8. Nxe5 {[%clk 0:04:48.1]}
8... dxe5 {[%clk 0:04:47.4]} 9. O-O {[%clk 0:04:47.5]} 9... c5 {[%clk
0:04:35.5]} 10. Be3 {[%clk 0:04:43.1]} 10... b6 {[%clk 0:04:32]} 11. a3 {[%clk
0:04:41.1]} 11... Ba6 {[%clk 0:04:28.6]} 12. b4 {[%clk 0:04:35.2]} 12... Bc8
{[%clk 0:04:17.3]} 13. bxc5 {[%clk 0:04:32.2]} 13... bxc5 {[%clk 0:04:15.7]} 14.
Bxc5 {[%clk 0:04:31.4]} 14... h5 {[%clk 0:04:12.4]} 15. Be3 {[%clk 0:04:26.4]}
15... Bg4 {[%clk 0:04:08.5]} 16. f3 {[%clk 0:04:24.8]} 16... Bd7 {[%clk
0:04:06.3]} 17. c5 {[%clk 0:04:23.8]} 17... e6 {[%clk 0:04:03.8]} 18. c6 {[%clk
0:04:15.6]} 18... Bc8 {[%clk 0:04:01.9]} 19. d6 {[%clk 0:04:15.1]} 19... Qa5
{[%clk 0:03:48.2]} 20. Qd3 {[%clk 0:04:01.5]} 20... Rd8 {[%clk 0:03:39.4]} 21.
d7 {[%clk 0:03:58.6]} 21... Bxd7 {[%clk 0:03:36.8]} 22. cxd7 {[%clk 0:03:57.3]}
22... Qc7 {[%clk 0:03:32.2]} 23. Nb5 {[%clk 0:03:48]} 23... Qa5 {[%clk
0:03:21.7]} 24. Qc3 {[%clk 0:03:19]} 24... Qxc3 {[%clk 0:03:15.2]} 25. Nxc3
{[%clk 0:03:17.2]} 25... Rxd7 {[%clk 0:03:14.9]} 26. Rfd1 {[%clk 0:03:15.8]}
26... Rxd1+ {[%clk 0:03:13]} 27. Rxd1 {[%clk 0:03:14.2]} 27... Kf8 {[%clk
0:03:08.2]} 28. Bc5+ {[%clk 0:03:07.5]} 28... Ke8 {[%clk 0:03:05.7]} 29. Bb5+
{[%clk 0:03:07]} 29... Nd7 {[%clk 0:03:01.2]} 30. Bxd7+ {[%clk 0:03:05.3]} 30...
Kd8 {[%clk 0:02:59.6]} 31. Bc6+ {[%clk 0:03:04.6]} 1-0

[Event "Live Chess"]
[Site "Chess.com"]
[Date "2023.05.21"]
[Round "-"]
[White "Biranidun"]
[Black "KeithArkell"]
[Result "0-1"]
[WhiteElo "2506"]
[BlackElo "2584"]
[TimeControl "300"]
[EndTime "19:53:28 PDT"]
[Termination "KeithArkell won by resignation"]

1. e4 {[%clk 0:04:50.2]} 1... c6 {[%clk 0:04:58.8]} 2. d4 {[%clk 0:04:48]} 2...
d5 {[%clk 0:04:58.2]} 3. e5 {[%clk 0:04:47.6]} 3... c5 {[%clk 0:04:57.7]} 4.
dxc5 {[%clk 0:04:47.5]} 4... Nc6 {[%clk 0:04:55.7]} 5. f4 {[%clk 0:04:47]} 5...
e6 {[%clk 0:04:54.1]} 6. Be3 {[%clk 0:04:45.2]} 6... d4 {[%clk 0:04:53.6]} 7.
Bf2 {[%clk 0:04:44.8]} 7... Bxc5 {[%clk 0:04:52.9]} 8. Nd2 {[%clk 0:04:43.3]}
8... Nge7 {[%clk 0:04:52.2]} 9. a3 {[%clk 0:04:41.7]} 9... Nf5 {[%clk
0:04:46.9]} 10. Bd3 {[%clk 0:04:39.5]} 10... Ne3 {[%clk 0:04:45]} 11. Qf3 {[%clk
0:04:36.5]} 11... O-O {[%clk 0:04:41.2]} 12. Ne2 {[%clk 0:04:34.8]} 12... f6
{[%clk 0:04:40.6]} 13. Qh3 {[%clk 0:04:30.7]} 13... f5 {[%clk 0:04:37.3]} 14.
Rg1 {[%clk 0:04:20.9]} 14... a5 {[%clk 0:04:18.4]} 15. g4 {[%clk 0:04:18.8]}
15... g6 {[%clk 0:04:12.9]} 16. gxf5 {[%clk 0:04:16.2]} 16... exf5 {[%clk
0:04:12.2]} 17. Nb3 {[%clk 0:04:09.2]} 17... Bb6 {[%clk 0:04:07.8]} 18. Bxe3
{[%clk 0:04:07.2]} 18... dxe3 {[%clk 0:04:06.4]} 19. O-O-O {[%clk 0:04:05]}
19... Qe7 {[%clk 0:03:52.7]} 20. Bc4+ {[%clk 0:04:02.4]} 20... Be6 {[%clk
0:03:49.7]} 21. Bxe6+ {[%clk 0:04:01.2]} 21... Qxe6 {[%clk 0:03:48.3]} 22. Rd6
{[%clk 0:04:00.2]} 22... Qf7 {[%clk 0:03:42.8]} 23. Qh6 {[%clk 0:03:53.9]} 23...
Kh8 {[%clk 0:03:25.1]} 24. Rdxg6 {[%clk 0:03:50.3]} 24... Rg8 {[%clk 0:03:24.3]}
25. Rxg8+ {[%clk 0:03:47.6]} 25... Rxg8 {[%clk 0:03:24.2]} 26. Rxg8+ {[%clk
0:03:46.6]} 26... Kxg8 {[%clk 0:03:19.8]} 27. a4 {[%clk 0:03:03.7]} 27... Qc4
{[%clk 0:02:56.7]} 28. Qg5+ {[%clk 0:03:01.9]} 28... Kh8 {[%clk 0:02:56]} 29.
Qxf5 {[%clk 0:02:57.6]} 29... h6 {[%clk 0:02:41.1]} 30. Qc8+ {[%clk 0:02:25]}
30... Bd8 {[%clk 0:02:20.1]} 31. Nbd4 {[%clk 0:02:13.8]} 31... Qd5 {[%clk
0:02:14.3]} 32. c3 {[%clk 0:00:54.5]} 32... Qh1+ {[%clk 0:01:29.9]} 33. Kc2
{[%clk 0:00:53.1]} 33... Qe4+ {[%clk 0:01:28.8]} 34. Kb3 {[%clk 0:00:52.7]}
34... Qd5+ {[%clk 0:01:27.9]} 35. Ka3 {[%clk 0:00:52.3]} 35... Qc5+ {[%clk
0:01:14.8]} 36. b4 {[%clk 0:00:50]} 36... axb4+ {[%clk 0:01:13.8]} 37. Ka2
{[%clk 0:00:49.4]} 37... Qc4+ {[%clk 0:01:01.7]} 38. Ka1 {[%clk 0:00:44.7]}
38... bxc3 {[%clk 0:00:43.4]} 39. Qe6 {[%clk 0:00:35.2]} 39... Qxa4+ {[%clk
0:00:29.8]} 40. Kb1 {[%clk 0:00:34.6]} 40... Qd1+ {[%clk 0:00:25.4]} 41. Nc1
{[%clk 0:00:33.9]} 41... Qxd4 {[%clk 0:00:22.6]} 42. Qxh6+ {[%clk 0:00:33]}
42... Kg8 {[%clk 0:00:21.6]} 43. Qg6+ {[%clk 0:00:32.7]} 43... Kf8 {[%clk
0:00:21.1]} 44. Qf5+ {[%clk 0:00:31.8]} 44... Ke8 {[%clk 0:00:20.3]} 45. Qe6+
{[%clk 0:00:30.7]} 45... Be7 {[%clk 0:00:18.7]} 46. Qc8+ {[%clk 0:00:29.6]}
46... Kf7 {[%clk 0:00:17.4]} 47. Qf5+ {[%clk 0:00:26.3]} 47... Kg7 {[%clk
0:00:15.8]} 48. Qg4+ {[%clk 0:00:25.3]} 48... Kf8 {[%clk 0:00:15]} 49. Qf5+
{[%clk 0:00:24.4]} 49... Ke8 {[%clk 0:00:14.4]} 50. Qc8+ {[%clk 0:00:23.8]}
50... Nd8 {[%clk 0:00:13.7]} 51. Qf5 {[%clk 0:00:18.7]} 51... Qb4+ {[%clk
0:00:12]} 52. Kc2 {[%clk 0:00:17.7]} 52... Qb2+ {[%clk 0:00:11.2]} 53. Kd3
{[%clk 0:00:17.6]} 53... Qb1+ {[%clk 0:00:09.8]} 54. Kxc3 {[%clk 0:00:16.8]}
54... Qxf5 {[%clk 0:00:09]} 55. Nd3 {[%clk 0:00:16.7]} 55... Qe4 {[%clk
0:00:07.7]} 56. Ne1 {[%clk 0:00:15.6]} 56... e2 {[%clk 0:00:07.2]} 57. Kd2
{[%clk 0:00:14.9]} 57... Bb4+ {[%clk 0:00:05.4]} 58. Kc1 {[%clk 0:00:13.1]}
58... Bxe1 {[%clk 0:00:05.3]} 59. Kb2 {[%clk 0:00:13]} 59... Bb4 {[%clk
0:00:04.5]} 60. f5 {[%clk 0:00:12.9]} 60... e1=Q {[%clk 0:00:04.3]} 61. e6
{[%clk 0:00:12.8]} 61... Qc3+ {[%clk 0:00:03.7]} 0-1

[Event "Live Chess"]
[Site "Chess.com"]
[Date "2023.05.21"]
[Round "-"]
[White "ViktorTheCoolBoy"]
[Black "Fazer180"]
[Result "1-0"]
[WhiteElo "2498"]
[BlackElo "1743"]
[TimeControl "300"]
[EndTime "19:54:01 PDT"]
[Termination "ViktorTheCoolBoy won by resignation"]

1. d4 {[%clk 0:04:59.1]} 1... e6 {[%clk 0:04:58.4]} 2. Nf3 {[%clk 0:04:56.9]}
2... d5 {[%clk 0:04:57.5]} 3. c4 {[%clk 0:04:55.9]} 3... Nf6 {[%clk 0:04:56.1]}
4. Nc3 {[%clk 0:04:55.2]} 4... c5 {[%clk 0:04:52.3]} 5. cxd5 {[%clk 0:04:53.6]}
5... Nxd5 {[%clk 0:04:46.5]} 6. e4 {[%clk 0:04:51.4]} 6... Nxc3 {[%clk
0:04:44.3]} 7. bxc3 {[%clk 0:04:51.3]} 7... Nc6 {[%clk 0:04:41]} 8. Be2 {[%clk
0:04:44.1]} 8... cxd4 {[%clk 0:04:36.4]} 9. cxd4 {[%clk 0:04:42.7]} 9... Bb4+
{[%clk 0:04:26.7]} 10. Bd2 {[%clk 0:04:41.5]} 10... Qa5 {[%clk 0:04:07.6]} 11.
Bxb4 {[%clk 0:04:38.8]} 11... Qxb4+ {[%clk 0:04:06.1]} 12. Qd2 {[%clk
0:04:38.1]} 12... Qxd2+ {[%clk 0:04:04.8]} 13. Kxd2 {[%clk 0:04:38]} 13... Ke7
{[%clk 0:03:57]} 14. Rhc1 {[%clk 0:04:36.6]} 14... Rd8 {[%clk 0:03:51.8]} 15.
Ke3 {[%clk 0:04:34.3]} 15... Bd7 {[%clk 0:03:45.4]} 16. Rab1 {[%clk 0:04:32.8]}
16... b6 {[%clk 0:03:25.9]} 17. Ba6 {[%clk 0:04:30.9]} 17... Rab8 {[%clk
0:03:23.5]} 18. Rc3 {[%clk 0:04:25.2]} 18... f6 {[%clk 0:02:33.2]} 19. a3 {[%clk
0:04:23.4]} 19... Kd6 {[%clk 0:02:23.1]} 20. Rbc1 {[%clk 0:04:19.1]} 20... f5
{[%clk 0:02:10]} 21. Bb5 {[%clk 0:03:50.1]} 21... Rbc8 {[%clk 0:01:58.5]} 22.
Bxc6 {[%clk 0:03:47.3]} 22... Rxc6 {[%clk 0:01:50.6]} 23. Ne5 {[%clk 0:03:35.7]}
23... Rxc3+ {[%clk 0:01:43.5]} 24. Rxc3 {[%clk 0:03:35.6]} 24... Rf8 {[%clk
0:01:28.9]} 25. f3 {[%clk 0:03:34.4]} 25... fxe4 {[%clk 0:01:27.4]} 26. fxe4
{[%clk 0:03:33.2]} 26... Bb5 {[%clk 0:01:21.7]} 27. Rb3 {[%clk 0:03:27.6]} 27...
Bf1 {[%clk 0:01:17.5]} 28. Rb2 {[%clk 0:03:25.9]} 28... h5 {[%clk 0:01:11.2]}
29. a4 {[%clk 0:03:23.8]} 29... g5 {[%clk 0:01:02.1]} 30. Rc2 {[%clk 0:03:22.1]}
30... g4 {[%clk 0:00:52.4]} 31. Rc6+ {[%clk 0:03:20.1]} 31... Ke7 {[%clk
0:00:51.7]} 32. Rc7+ {[%clk 0:03:19.2]} 32... Kf6 {[%clk 0:00:49.2]} 33. Nd7+
{[%clk 0:03:17.9]} 33... Ke7 {[%clk 0:00:46.3]} 34. Nxf8+ {[%clk 0:03:17.4]}
34... Kxf8 {[%clk 0:00:46.2]} 35. g3 {[%clk 0:03:16.4]} 35... a6 {[%clk
0:00:43]} 36. Rc6 {[%clk 0:03:14.5]} 36... b5 {[%clk 0:00:41.6]} 37. axb5 {[%clk
0:03:11.7]} 37... Bxb5 {[%clk 0:00:39.5]} 38. Rxe6 {[%clk 0:03:10.6]} 38... Kf7
{[%clk 0:00:39.2]} 39. Rh6 {[%clk 0:03:09.5]} 39... a5 {[%clk 0:00:37.2]} 40.
Rxh5 {[%clk 0:03:08.7]} 40... Bd7 {[%clk 0:00:33.9]} 41. Rxa5 {[%clk 0:03:07.5]}
1-0

[Event "Live Chess"]
[Site "Chess.com"]
[Date "2023.05.21"]
[Round "-"]
[White "ramses-IIG"]
[Black "grillage"]
[Result "0-1"]
[WhiteElo "870"]
[BlackElo "1809"]
[TimeControl "300"]
[EndTime "19:54:32 PDT"]
[Termination "grillage won by checkmate"]

1. e4 {[%clk 0:04:59]} 1... d5 {[%clk 0:04:58.8]} 2. Nf3 {[%clk 0:04:58.8]} 2...
dxe4 {[%clk 0:04:57.2]} 3. Ng5 {[%clk 0:04:57.8]} 3... Bf5 {[%clk 0:04:56.1]} 4.
d3 {[%clk 0:04:54.1]} 4... exd3 {[%clk 0:04:53.5]} 5. Bxd3 {[%clk 0:04:53.7]}
5... Bxd3 {[%clk 0:04:52.5]} 6. cxd3 {[%clk 0:04:52.4]} 6... Nf6 {[%clk
0:04:50.4]} 7. O-O {[%clk 0:04:47.7]} 7... e6 {[%clk 0:04:46.7]} 8. Nf3 {[%clk
0:04:46.7]} 8... Bd6 {[%clk 0:04:44]} 9. d4 {[%clk 0:04:45.7]} 9... O-O {[%clk
0:04:42.8]} 10. Qb3 {[%clk 0:04:38.1]} 10... Qc8 {[%clk 0:04:35.7]} 11. Bg5
{[%clk 0:04:34.2]} 11... Nbd7 {[%clk 0:04:33.7]} 12. Nc3 {[%clk 0:04:29.6]}
12... c6 {[%clk 0:04:32.1]} 13. Nd2 {[%clk 0:04:18.7]} 13... h6 {[%clk
0:04:30.1]} 14. Bxf6 {[%clk 0:04:15.2]} 14... Nxf6 {[%clk 0:04:28.9]} 15. Nde4
{[%clk 0:04:10.8]} 15... Nxe4 {[%clk 0:04:25.2]} 16. Nxe4 {[%clk 0:04:10.7]}
16... Be7 {[%clk 0:04:24.2]} 17. Rac1 {[%clk 0:04:05.8]} 17... Rd8 {[%clk
0:04:22.1]} 18. Ng3 {[%clk 0:04:02.3]} 18... Rxd4 {[%clk 0:04:19.3]} 19. Qc3
{[%clk 0:03:55.9]} 19... Qd7 {[%clk 0:04:15.5]} 20. Nh5 {[%clk 0:03:45.1]} 20...
g6 {[%clk 0:04:06.1]} 21. Ng3 {[%clk 0:03:40.6]} 21... Bf6 {[%clk 0:04:03.4]}
22. Qc2 {[%clk 0:03:39.4]} 22... Bg7 {[%clk 0:04:00.9]} 23. f3 {[%clk
0:03:34.1]} 23... Rd2 {[%clk 0:03:58.5]} 24. Qb3 {[%clk 0:03:27.7]} 24... Rxb2
{[%clk 0:03:55.6]} 25. Qe3 {[%clk 0:03:13.8]} 25... Qd2 {[%clk 0:03:49.8]} 26.
Qf4 {[%clk 0:03:05.9]} 26... Qxg2# {[%clk 0:03:47.8]} 0-1

[Event "Live Chess"]
[Site "Chess.com"]
[Date "2023.05.21"]
[Round "-"]
[White "LutherSullivan"]
[Black "chessfiction"]
[Result "1-0"]
[WhiteElo "2189"]
[BlackElo "2342"]
[TimeControl "300"]
[EndTime "19:55:20 PDT"]
[Termination "LutherSullivan won by resignation"]

1. e4 {[%clk 0:04:57.9]} 1... d5 {[%clk 0:04:59.6]} 2. exd5 {[%clk 0:04:56.2]}
2... c6 {[%clk 0:04:59.5]} 3. dxc6 {[%clk 0:04:54.8]} 3... e5 {[%clk 0:04:59.2]}
4. d4 {[%clk 0:04:52.2]} 4... exd4 {[%clk 0:04:58.2]} 5. Nf3 {[%clk 0:04:48.4]}
5... Nxc6 {[%clk 0:04:56.2]} 6. Bc4 {[%clk 0:04:43.9]} 6... Bc5 {[%clk
0:04:53.8]} 7. O-O {[%clk 0:04:42.7]} 7... Nge7 {[%clk 0:04:51.2]} 8. Ng5 {[%clk
0:04:39.4]} 8... Ne5 {[%clk 0:04:50.5]} 9. Bxf7+ {[%clk 0:04:29.3]} 9... Nxf7
{[%clk 0:04:49.1]} 10. Nxf7 {[%clk 0:04:28.9]} 10... Kxf7 {[%clk 0:04:47.8]} 11.
Qh5+ {[%clk 0:04:27.6]} 11... g6 {[%clk 0:04:38.6]} 12. Qxc5 {[%clk 0:04:27]}
12... Qd5 {[%clk 0:04:38.1]} 13. Qxd5+ {[%clk 0:04:21.6]} 13... Nxd5 {[%clk
0:04:38]} 14. Nd2 {[%clk 0:04:13.7]} 14... Bf5 {[%clk 0:04:36.9]} 15. Nf3 {[%clk
0:04:02.6]} 15... Rhd8 {[%clk 0:04:19.5]} 16. Nxd4 {[%clk 0:03:59.7]} 16... Nb4
{[%clk 0:04:18.7]} 17. c3 {[%clk 0:03:57.2]} 17... Rxd4 {[%clk 0:04:17.6]} 18.
cxd4 {[%clk 0:03:54.9]} 18... Nc2 {[%clk 0:04:17.1]} 19. Be3 {[%clk 0:03:46.8]}
19... Nxa1 {[%clk 0:04:15.1]} 20. Rxa1 {[%clk 0:03:45.7]} 20... Rc8 {[%clk
0:04:15]} 21. Rc1 {[%clk 0:03:39.7]} 21... Rxc1+ {[%clk 0:04:13.3]} 22. Bxc1
{[%clk 0:03:39.4]} 22... Ke6 {[%clk 0:04:12.3]} 23. Bd2 {[%clk 0:03:33.3]} 23...
Kd5 {[%clk 0:04:11]} 24. Bc3 {[%clk 0:03:32.2]} 24... Kc4 {[%clk 0:04:06.7]} 25.
Kf1 {[%clk 0:03:28.4]} 25... b5 {[%clk 0:04:04.7]} 26. a3 {[%clk 0:03:27.4]}
26... a5 {[%clk 0:04:03.7]} 27. Bxa5 {[%clk 0:03:25.9]} 27... Kxd4 {[%clk
0:04:01.5]} 28. Ke2 {[%clk 0:03:23.4]} 28... Bd3+ {[%clk 0:03:58.5]} 29. Kf3
{[%clk 0:03:21.7]} 29... Be4+ {[%clk 0:03:57.9]} 30. Kg3 {[%clk 0:03:20.8]}
30... h5 {[%clk 0:03:56.4]} 31. f3 {[%clk 0:03:15.9]} 31... Bf5 {[%clk
0:03:52.6]} 32. Kf4 {[%clk 0:03:13.6]} 32... Kd3 {[%clk 0:03:50.6]} 33. h4
{[%clk 0:03:01.9]} 33... Kd4 {[%clk 0:03:37]} 34. g4 {[%clk 0:02:59.8]} 34...
Be6 {[%clk 0:03:32.5]} 35. Bc3+ {[%clk 0:02:56.8]} 35... Kd5 {[%clk 0:03:27.5]}
36. Kg5 {[%clk 0:02:55.7]} 36... hxg4 {[%clk 0:03:26.1]} 37. fxg4 {[%clk
0:02:55.2]} 37... Bf7 {[%clk 0:03:25.3]} 38. h5 {[%clk 0:02:47.2]} 38... gxh5
{[%clk 0:03:25.2]} 39. gxh5 {[%clk 0:02:46.5]} 39... Bg8 {[%clk 0:03:24.4]} 40.
Kf6 {[%clk 0:02:44.4]} 40... Bh7 {[%clk 0:03:23.2]} 41. Kg7 {[%clk 0:02:43.1]}
41... Bb1 {[%clk 0:03:21.8]} 42. h6 {[%clk 0:02:42.6]} 42... b4 {[%clk
0:03:20.6]} 43. axb4 {[%clk 0:02:40.8]} 43... Kc4 {[%clk 0:03:18.3]} 44. h7
{[%clk 0:02:39.2]} 44... Bxh7 {[%clk 0:03:16.4]} 45. Kxh7 {[%clk 0:02:38.9]}
45... Kb5 {[%clk 0:03:16]} 46. Kg6 {[%clk 0:02:38.6]} 46... Kc4 {[%clk
0:03:15.9]} 47. Kf5 {[%clk 0:02:38.2]} 47... Kb5 {[%clk 0:03:15.8]} 48. Ke5
{[%clk 0:02:37.7]} 48... Kb6 {[%clk 0:03:15.7]} 49. Kd5 {[%clk 0:02:37]} 49...
Kb7 {[%clk 0:03:15.6]} 50. Kc5 {[%clk 0:02:36.2]} 50... Ka6 {[%clk 0:03:15.5]}
51. b5+ {[%clk 0:02:35.1]} 51... Kb7 {[%clk 0:03:15.4]} 52. Be1 {[%clk
0:02:29.9]} 52... Ka8 {[%clk 0:03:15.3]} 53. Kb6 {[%clk 0:02:28.2]} 53... Kb8
{[%clk 0:03:14.5]} 54. Kc6 {[%clk 0:02:27.5]} 54... Ka8 {[%clk 0:03:14.4]} 55.
b6 {[%clk 0:02:26.9]} 55... Kb8 {[%clk 0:03:14.3]} 56. Bg3+ {[%clk 0:02:24.1]}
56... Ka8 {[%clk 0:03:14.2]} 57. b7+ {[%clk 0:02:23.2]} 1-0

[Event "Live Chess"]
[Site "Chess.com"]
[Date "2023.05.21"]
[Round "-"]
[White "Olisingapore"]
[Black "ViktorTheCoolBoy"]
[Result "0-1"]
[WhiteElo "1789"]
[BlackElo "2498"]
[TimeControl "300"]
[EndTime "19:56:04 PDT"]
[Termination "ViktorTheCoolBoy won by resignation"]

1. d4 {[%clk 0:04:58.2]} 1... e6 {[%clk 0:04:59.3]} 2. c4 {[%clk 0:04:57.3]}
2... b6 {[%clk 0:04:58]} 3. Nf3 {[%clk 0:04:53.8]} 3... Bb7 {[%clk 0:04:56.4]}
4. g3 {[%clk 0:04:52.9]} 4... f5 {[%clk 0:04:54.8]} 5. Bg2 {[%clk 0:04:51.2]}
5... Nf6 {[%clk 0:04:54.3]} 6. Nc3 {[%clk 0:04:48.4]} 6... Be7 {[%clk
0:04:52.7]} 7. O-O {[%clk 0:04:46.4]} 7... O-O {[%clk 0:04:52]} 8. Qc2 {[%clk
0:04:44.9]} 8... Ne4 {[%clk 0:04:50.1]} 9. Re1 {[%clk 0:04:42]} 9... d6 {[%clk
0:04:45.1]} 10. Nxe4 {[%clk 0:04:34.1]} 10... Bxe4 {[%clk 0:04:42.8]} 11. Qc3
{[%clk 0:04:31.6]} 11... Bf6 {[%clk 0:04:40.7]} 12. Nd2 {[%clk 0:04:29.3]} 12...
Bxg2 {[%clk 0:04:39.5]} 13. Kxg2 {[%clk 0:04:27.8]} 13... c5 {[%clk 0:04:37.5]}
14. e3 {[%clk 0:04:24.8]} 14... Nc6 {[%clk 0:04:36.2]} 15. Nf3 {[%clk
0:04:23.8]} 15... e5 {[%clk 0:04:35.1]} 16. Rd1 {[%clk 0:04:20.6]} 16... Qe7
{[%clk 0:04:31.1]} 17. Ne1 {[%clk 0:04:10.1]} 17... exd4 {[%clk 0:04:29.3]} 18.
exd4 {[%clk 0:04:09]} 18... Nxd4 {[%clk 0:04:28.6]} 19. Bf4 {[%clk 0:04:00.5]}
19... Qb7+ {[%clk 0:04:26.6]} 20. Kg1 {[%clk 0:03:57.5]} 20... Ne2+ {[%clk
0:04:24.9]} 21. Kf1 {[%clk 0:03:54.6]} 21... Nxc3 {[%clk 0:04:23.6]} 22. bxc3
{[%clk 0:03:53.4]} 22... Bxc3 {[%clk 0:04:22.5]} 0-1

[Event "Live Chess"]
[Site "Chess.com"]
[Date "2023.05.21"]
[Round "-"]
[White "raminguy"]
[Black "ClassyChameleon"]
[Result "1-0"]
[WhiteElo "1955"]
[BlackElo "1077"]
[TimeControl "300"]
[EndTime "19:56:12 PDT"]
[Termination "raminguy won by checkmate"]

1. d4 {[%clk 0:04:58.5]} 1... d5 {[%clk 0:04:59.2]} 2. Nc3 {[%clk 0:04:57.4]}
2... f5 {[%clk 0:04:58.3]} 3. Bf4 {[%clk 0:04:56.8]} 3... Nf6 {[%clk 0:04:55.5]}
4. e3 {[%clk 0:04:55.8]} 4... e6 {[%clk 0:04:54.4]} 5. Nf3 {[%clk 0:04:51.4]}
5... Bb4 {[%clk 0:04:52.4]} 6. Bd3 {[%clk 0:04:49.4]} 6... Ne4 {[%clk
0:04:50.7]} 7. Bxe4 {[%clk 0:04:48.2]} 7... dxe4 {[%clk 0:04:50.3]} 8. Ne5
{[%clk 0:04:45.5]} 8... O-O {[%clk 0:04:41.9]} 9. O-O {[%clk 0:04:42.3]} 9...
Bxc3 {[%clk 0:04:40.8]} 10. bxc3 {[%clk 0:04:40.3]} 10... b6 {[%clk 0:04:38.3]}
11. c4 {[%clk 0:04:38.5]} 11... Bb7 {[%clk 0:04:36.2]} 12. a4 {[%clk 0:04:30.1]}
12... Na6 {[%clk 0:04:33.7]} 13. a5 {[%clk 0:04:28.3]} 13... Nb4 {[%clk
0:04:30.1]} 14. axb6 {[%clk 0:04:25]} 14... axb6 {[%clk 0:04:27.7]} 15. Qd2
{[%clk 0:04:18.1]} 15... Rxa1 {[%clk 0:04:20.2]} 16. Rxa1 {[%clk 0:04:18]} 16...
Nc6 {[%clk 0:04:18.1]} 17. Nxc6 {[%clk 0:04:12.8]} 17... Bxc6 {[%clk 0:04:16.4]}
18. h3 {[%clk 0:04:06.8]} 18... h6 {[%clk 0:04:12.3]} 19. Ra7 {[%clk 0:04:02.9]}
19... Qe7 {[%clk 0:03:53.1]} 20. Rxc7 {[%clk 0:03:56.6]} 20... Qa3 {[%clk
0:03:40.8]} 21. Rxc6 {[%clk 0:03:51.7]} 21... Qa1+ {[%clk 0:03:36.2]} 22. Kh2
{[%clk 0:03:49.6]} 22... g5 {[%clk 0:03:31.9]} 23. Be5 {[%clk 0:03:47.5]} 23...
g4 {[%clk 0:03:29.3]} 24. Rc7 {[%clk 0:03:44.3]} 24... Ra8 {[%clk 0:03:05.3]}
25. Rg7+ {[%clk 0:03:40.6]} 25... Kf8 {[%clk 0:03:03.7]} 26. Qb4+ {[%clk
0:03:39.7]} 26... Ke8 {[%clk 0:02:59.8]} 27. Qe7# {[%clk 0:03:38.1]} 1-0